bitfinex/quotes_BTCUSD_20251031
["timestamp","ask_amount","ask_price","bid_price","bid_amount"]
[1761902116320,0.51927497,110310.0,110300.0,0.14415496]
[1761902116523,0.39235992,110310.0,110300.0,0.27108152]
[1761902116710,0.51927497,110310.0,110300.0,0.14415496]
[1761902116919,0.91063489,110310.0,110300.0,0.27108152]
[1761902117124,1.25063489,110310.0,110300.0,0.27308152]
[1761902117506,1.24963489,110310.0,110300.0,0.27308152]
[1761902117695,0.15415282,110320.0,110300.0,0.27308152]
[1761902117898,0.15415282,110320.0,110300.0,0.21887651]
[1761902117899,0.90963489,110310.0,110300.0,0.21887651]
[1761902118101,0.72893992,110310.0,110300.0,0.23393651]
[1761902118319,0.72893992,110310.0,110300.0,0.23493651]
[1761902120313,0.72893992,110310.0,110300.0,0.09394995]
[1761902120973,0.72893992,110310.0,110300.0,0.09494995]
[1761902122290,0.51827497,110310.0,110300.0,0.27260651]
[1761902122493,0.39135992,110310.0,110300.0,0.27260651]
[1761902123261,0.51827497,110310.0,110300.0,0.27260651]
[1761902123440,0.39135992,110310.0,110300.0,0.27260651]
[1761902123602,0.39135992,110310.0,110300.0,0.27541151]
[1761902125630,0.50320452,110330.0,110310.0,0.12691505]
[1761902125631,0.73135992,110320.0,110310.0,0.12691505]
[1761902125837,0.73135992,110320.0,110310.0,0.25240406]
[1761902126036,0.73135992,110320.0,110310.0,0.26746406]
[1761902126567,0.85826347,110320.0,110310.0,0.14054901]
[1761902126895,0.85826347,110320.0,110310.0,0.14254901]
[1761902127091,0.39135992,110320.0,110310.0,0.26946406]
[1761902127660,0.51826347,110320.0,110310.0,0.26946406]
[1761902128807,0.39135992,110320.0,110310.0,0.26946406]
[1761902130209,0.51826347,110320.0,110310.0,0.26946406]
[1761902131057,0.51826347,110320.0,110310.0,0.27204849]
[1761902132623,0.51826347,110320.0,110310.0,0.12193344]
[1761902133001,0.51826347,110320.0,110310.0,0.09440344]
[1761902134177,0.51826347,110320.0,110310.0,0.23637849]
[1761902134778,0.51826347,110320.0,110310.0,0.24884849]
[1761902135161,0.51826347,110320.0,110310.0,0.12193344]
[1761902136360,0.51826347,110320.0,110310.0,0.00458443]
[1761902138822,0.51826347,110320.0,110310.0,0.01964443]
[1761902140225,0.51826347,110320.0,110310.0,0.14655948]
[1761902140428,0.51826347,110320.0,110310.0,0.24884849]
[1761902140604,0.53659827,110340.0,110320.0,0.12690355]
[1761902140804,0.39135992,110330.0,110320.0,0.25148548]
[1761902141211,0.39135992,110330.0,110320.0,0.26654548]
[1761902142359,0.5182427,110340.0,110320.0,0.26654548]
[1761902142564,0.5182427,110340.0,110320.0,0.16166647]
[1761902142565,0.001,110330.0,110320.0,0.16166647]
[1761902142738,0.73135992,110340.0,110330.0,0.15009205]
[1761902143074,0.85824047,110340.0,110330.0,0.26744106]
[1761902144042,0.85824047,110340.0,110330.0,0.14054901]
[1761902144230,0.85824047,110340.0,110330.0,0.14454901]
[1761902145115,0.85824047,110340.0,110330.0,0.12134901]
[1761902145521,0.85824047,110340.0,110330.0,0.09381901]
[1761902145741,0.85824047,110340.0,110330.0,0.09481901]
[1761902145981,1.24960039,110340.0,110330.0,0.09481901]
[1761902146174,0.85824047,110340.0,110330.0,0.09696242]
[1761902148509,0.85824047,110340.0,110330.0,0.12435242]
[1761902148710,0.85824047,110340.0,110330.0,0.14789242]
[1761902149256,0.85824047,110340.0,110330.0,0.12435242]
[1761902151241,0.46688055,110340.0,110330.0,0.27478447]
[1761902151456,0.85824047,110340.0,110330.0,0.14789242]
[1761902151661,0.51824047,110340.0,110330.0,0.27478447]
[1761902153407,0.90905987,110340.0,110330.0,0.27478447]
[1761902153574,0.78217932,110340.0,110330.0,0.27478447]
[1761902155010,0.76270874,110360.0,110340.0,0.12688055]
[1761902155364,0.73108966,110350.0,110340.0,0.25246956]
[1761902155579,0.73108966,110350.0,110340.0,0.22892956]
[1761902155794,0.39108966,110350.0,110340.0,0.24408956]
[1761902156257,0.39108966,110350.0,110340.0,0.26762956]
[1761902156795,0.39108966,110350.0,110340.0,0.26962956]
[1761902157403,0.39108966,110350.0,110340.0,0.26762956]
[1761902157598,0.39108966,110350.0,110340.0,0.27062956]
[1761902157913,0.51795871,110350.0,110340.0,0.27062956]
[1761902158688,0.51895871,110350.0,110340.0,0.27662956]
[1761902159095,0.39208966,110350.0,110340.0,0.27662956]
[1761902160437,0.39208966,110350.0,110340.0,0.27855252]
[1761902160684,0.51895871,110350.0,110340.0,0.27855252]
[1761902161006,0.51895871,110350.0,110340.0,0.15167197]
[1761902161279,0.51895871,110350.0,110340.0,0.27855252]
[1761902162819,0.39208966,110350.0,110340.0,0.27855252]
[1761902162977,0.001,110350.0,110340.0,0.27855252]
[1761902163459,0.001,110350.0,110340.0,3.27855252]
[1761902164377,0.39208966,110350.0,110340.0,3.27855252]
[1761902165480,0.001,110350.0,110340.0,3.27855252]
[1761902166481,0.001,110350.0,110340.0,3.66964218]
[1761902166650,0.001,110350.0,110340.0,3.27855252]
[1761902170880,0.39208966,110350.0,110340.0,3.27855252]
[1761902171839,0.001,110350.0,110340.0,3.27855252]
[1761902178274,0.18792564,110360.0,110350.0,0.12686905]
[1761902178494,0.34,110370.0,110360.0,0.12685755]
[1761902178706,0.34014425,110370.0,110360.0,0.26691656]
[1761902179863,0.73123391,110370.0,110360.0,0.26691656]
[1761902180979,0.73123391,110370.0,110360.0,0.26891656]
[1761902181407,0.85807997,110370.0,110360.0,0.26891656]
[1761902181619,0.85807997,110370.0,110360.0,0.24553656]
[1761902182486,0.85807997,110370.0,110360.0,0.24653656]
[1761902182901,0.85807997,110370.0,110360.0,0.24453656]
[1761902183117,0.73123391,110370.0,110360.0,0.24853656]
[1761902183325,0.73123391,110370.0,110360.0,0.27191656]
[1761902184223,0.73123391,110370.0,110360.0,0.24853656]
[1761902184885,0.73123391,110370.0,110360.0,0.27191656]
[1761902187073,0.73123391,110370.0,110360.0,0.22167656]
[1761902187737,0.34014425,110370.0,110360.0,0.22167656]
[1761902187942,0.73123391,110370.0,110360.0,0.22167656]
[1761902188500,0.73123391,110370.0,110360.0,0.23691656]
[1761902189135,0.85807997,110370.0,110360.0,0.09481901]
[1761902189343,0.34014425,110370.0,110360.0,0.27191656]
[1761902189672,0.73123391,110370.0,110360.0,0.27191656]
[1761902190043,0.73123391,110370.0,110360.0,0.24853656]
[1761902193773,0.00014425,110370.0,110360.0,4.05409588]
[1761902194169,0.00014425,110370.0,110360.0,3.66300622]
[1761902194371,0.00014425,110370.0,110360.0,3.27191656]
[1761902194511,0.00014425,110370.0,110360.0,3.66300622]
[1761902195741,0.00014425,110370.0,110360.0,4.09027816]
[1761902196597,0.00014425,110370.0,110360.0,4.08927816]
[1761902196791,0.00014425,110370.0,110360.0,4.08527816]
[1761902196994,0.00014425,110370.0,110360.0,4.09027816]
[1761902198048,0.00014425,110370.0,110360.0,3.30809884]
[1761902198309,0.00114425,110370.0,110360.0,4.09827816]
[1761902212413,0.73128966,110400.0,110390.0,0.15408308]
[1761902212414,0.39108966,110400.0,110390.0,0.15408308]
[1761902212627,0.39157058,110400.0,110390.0,0.24390209]
[1761902212939,0.39157058,110400.0,110390.0,0.26668209]
[1761902213366,0.00048092,110400.0,110390.0,0.26668209]
[1761902213564,0.00048092,110400.0,110390.0,0.27068209]
[1761902230448,0.00048092,110400.0,110390.0,4.00129023]
[1761902231717,0.00048092,110400.0,110390.0,3.99729023]
[1761902232037,0.00048092,110400.0,110390.0,4.00329023]
[1761902232156,0.00048092,110400.0,110390.0,4.00129023]
[1761902232557,0.00048092,110400.0,110390.0,4.00029023]
[1761902232824,0.00048092,110400.0,110390.0,3.61568209]
[1761902233864,0.00048092,110400.0,110390.0,4.00629023]
[1761902236690,0.00048092,110400.0,110390.0,3.61568209]
[1761902236895,0.00048092,110400.0,110390.0,4.00629023]
[1761902238368,0.00048092,110400.0,110390.0,3.61568209]
[1761902239942,0.00048092,110400.0,110390.0,4.00629023]
[1761902241318,0.00048092,110400.0,110390.0,3.61568209]
[1761902241480,0.00048092,110400.0,110390.0,4.00629023]
[1761902242769,0.00048092,110400.0,110390.0,3.61568209]
[1761902243693,0.00048092,110400.0,110390.0,4.00629023]
[1761902247030,0.00048092,110400.0,110390.0,4.04247251]
[1761902256711,0.00048092,110400.0,110390.0,4.12295559]
[1761902257148,1e-08,110400.0,110390.0,4.44308064]
[1761902257351,1e-08,110400.0,110390.0,4.13295558]
[1761902257911,1e-08,110400.0,110390.0,3.66286436]
[1761902258137,1e-08,110400.0,110390.0,4.0524725]
[1761902258518,1e-08,110400.0,110390.0,4.44308064]
[1761902258661,1e-08,110400.0,110390.0,4.44670916]
[1761902258869,1e-08,110400.0,110390.0,4.16877733]
[1761902259071,1e-08,110400.0,110390.0,4.17877732]
[1761902259275,0.00022007,110420.0,110410.0,3.51298237]
[1761902259475,0.00036429,110420.0,110410.0,4.04522952]
[1761902260659,1e-08,110430.0,110420.0,3.19990089]
[1761902260845,1e-08,110430.0,110420.0,3.70621804]
[1761902261048,0.0002,110440.0,110430.0,4.2841757]
[1761902261270,0.0002,110450.0,110440.0,3.46676566]
[1761902261476,0.0002,110460.0,110450.0,0.12675418]
[1761902261616,0.00034416,110460.0,110450.0,3.67710907]
[1761902261827,0.00034416,110460.0,110450.0,3.65900133]
[1761902262209,0.00034416,110460.0,110450.0,3.99900133]
[1761902262425,0.00034416,110460.0,110450.0,4.42579175]
[1761902262636,0.00034416,110460.0,110450.0,4.0451836]
[1761902263503,0.00034416,110460.0,110450.0,4.03518361]
[1761902263686,0.00034416,110460.0,110450.0,4.03718361]
[1761902264796,0.00034416,110460.0,110450.0,4.0491836]
[1761902265007,0.00034416,110460.0,110450.0,4.05893239]
[1761902266023,0.00034416,110460.0,110450.0,4.0491836]
[1761902266217,0.00034416,110460.0,110450.0,4.1948836]
[1761902266555,0.00122419,110460.0,110450.0,4.1948836]
[1761902266748,0.00122419,110460.0,110450.0,4.58549174]
[1761902267393,0.00122419,110460.0,110450.0,4.20464661]
[1761902267782,0.00122419,110460.0,110450.0,4.1948836]
[1761902268609,0.00122419,110460.0,110450.0,4.0491836]
[1761902268810,1e-08,110460.0,110450.0,4.43979174]
[1761902269012,1e-08,110460.0,110450.0,4.44079174]
[1761902269858,1e-08,110460.0,110450.0,4.43979174]
[1761902270059,1e-08,110460.0,110450.0,4.44341821]
[1761902270276,1e-08,110460.0,110450.0,4.4534182]
[1761902270899,1e-08,110460.0,110450.0,4.4544182]
[1761902271105,1e-08,110460.0,110450.0,4.46406018]
[1761902271721,1e-08,110460.0,110450.0,4.46306018]
[1761902271937,1e-08,110460.0,110450.0,4.46406018]
[1761902272441,1e-08,110470.0,110460.0,3.53814269]
[1761902272680,1e-08,110470.0,110460.0,4.44636026]
[1761902272893,1e-08,110470.0,110460.0,4.8615187]
[1761902273106,1e-08,110470.0,110460.0,4.92979282]
[1761902273321,9.66243386,110500.0,110490.0,4.33164683]
[1761902273529,9.662578,110500.0,110490.0,4.42027298]
[1761902273738,9.662578,110500.0,110490.0,4.44313298]
[1761902274157,9.662578,110500.0,110490.0,4.47032118]
[1761902274374,7.68824296,110500.0,110490.0,6.10621448]
[1761902274612,7.68824296,110500.0,110490.0,4.85983289]
[1761902274613,7.68356073,110500.0,110490.0,4.85983289]
[1761902274815,7.47421284,110500.0,110490.0,4.8909129]
[1761902275021,7.29747998,110500.0,110490.0,4.91091288]
[1761902275238,7.29747998,110500.0,110490.0,4.86083289]
[1761902275441,6.74012395,110500.0,110490.0,4.92760236]
[1761902275648,6.55308543,110500.0,110490.0,4.96720307]
[1761902275829,6.55308543,110500.0,110490.0,4.95620308]
[1761902276061,6.55308543,110500.0,110490.0,4.93760236]
[1761902276401,6.55308543,110500.0,110490.0,4.46932119]
[1761902276603,6.55308543,110500.0,110490.0,4.4461389]
[1761902277213,6.55308543,110500.0,110490.0,3.66711548]
[1761902277485,6.55308543,110500.0,110490.0,4.4461389]
[1761902277690,6.55308543,110500.0,110490.0,4.48232118]
[1761902280710,6.55308543,110500.0,110490.0,4.00943901]
[1761902281052,6.55396498,110500.0,110490.0,4.019439]
[1761902281228,6.55396498,110500.0,110490.0,4.00943901]
[1761902281372,6.55396498,110500.0,110490.0,3.2799273]
[1761902281581,6.55396498,110500.0,110490.0,3.66143901]
[1761902282004,6.55396498,110500.0,110490.0,3.66343901]
[1761902282326,6.55396498,110500.0,110490.0,4.00643901]
[1761902282488,6.55396498,110500.0,110490.0,3.6079273]
[1761902282686,6.55396498,110500.0,110490.0,4.00243901]
[1761902282961,6.55396498,110500.0,110490.0,4.00443901]
[1761902283360,7.07017352,110500.0,110490.0,0.14821901]
[1761902283589,7.08650352,110500.0,110490.0,0.12435901]
[1761902283878,7.08650352,110500.0,110490.0,0.14821901]
[1761902283879,7.07017352,110500.0,110490.0,0.14821901]
[1761902284088,6.55396498,110500.0,110490.0,3.14821901]
[1761902284272,6.55396498,110500.0,110490.0,3.14321901]
[1761902284479,6.68066181,110500.0,110490.0,3.10963901]
[1761902284755,7.07017352,110500.0,110490.0,0.10963901]
[1761902285139,7.07017352,110500.0,110490.0,0.10863901]
[1761902285295,7.07017352,110500.0,110490.0,0.001]
[1761902285296,7.50040523,110500.0,110490.0,0.001]
[1761902286501,7.50040523,110500.0,110460.0,0.03548]
[1761902286502,0.12673123,110470.0,110460.0,0.01162]
[1761902286726,0.54487294,110470.0,110460.0,0.11735901]
[1761902287171,0.20695918,110470.0,110460.0,0.08981901]
[1761902287374,0.18256918,110470.0,110460.0,0.10573901]
[1761902287582,0.18256918,110470.0,110450.0,0.01162]
[1761902287583,0.12674271,110460.0,110450.0,0.01162]
[1761902287782,0.12675418,110450.0,110440.0,3.08981901]
[1761902287925,0.15228418,110450.0,110440.0,0.08981901]
[1761902288429,0.17667418,110450.0,110440.0,0.08981901]
[1761902288632,0.15228418,110450.0,110440.0,0.10573901]
[1761902288834,0.17667418,110450.0,110440.0,0.08996317]
[1761902289044,0.13595418,110450.0,110440.0,3.10888317]
[1761902289250,0.15113521,110460.0,110440.0,3.26050883]
[1761902289460,0.14307521,110460.0,110450.0,0.01592]
[1761902289710,0.14307521,110460.0,110450.0,0.02349]
[1761902289711,0.01633,110460.0,110450.0,0.02349]
[1761902289919,0.64301466,110470.0,110450.0,0.04735]
[1761902290151,0.12674271,110460.0,110450.0,0.04735]
[1761902290884,0.14307271,110460.0,110450.0,0.02349]
[1761902291288,0.14407271,110460.0,110450.0,0.02349]
[1761902292474,0.01733,110460.0,110450.0,0.24006319]
[1761902292679,0.14407271,110460.0,110450.0,0.11330901]
[1761902293237,0.16846271,110460.0,110450.0,0.08981901]
[1761902293448,0.61179596,110460.0,110450.0,0.08981901]
[1761902293649,0.61179596,110460.0,110440.0,0.01176416]
[1761902293650,0.61179596,110460.0,110440.0,0.00014416]
[1761902293875,0.02496,110450.0,110440.0,0.01676416]
[1761902294073,0.15213271,110460.0,110440.0,0.25825883]
[1761902294281,0.001,110460.0,110450.0,0.11400901]
[1761902294506,0.001,110460.0,110450.0,0.26567319]
[1761902294773,0.14830369,110470.0,110450.0,0.13891901]
[1761902294973,0.02820978,110460.0,110450.0,0.13891901]
[1761902295292,0.001,110460.0,110450.0,0.13891901]
[1761902295865,0.001,110460.0,110450.0,0.26567319]
[1761902296106,0.16638271,110460.0,110450.0,0.08981901]
[1761902296279,0.14250271,110460.0,110450.0,0.10643901]
[1761902296491,0.17118369,110470.0,110450.0,0.11336901]
[1761902296656,0.001,110460.0,110450.0,0.26503299]
[1761902297307,0.03539995,110470.0,110450.0,0.26503299]
[1761902297713,0.39784888,110480.0,110460.0,0.01578]
[1761902297894,0.52460006,110480.0,110460.0,0.01578]
[1761902298095,0.008,110470.0,110460.0,0.01578]
[1761902299045,0.13473123,110470.0,110460.0,0.01578]
[1761902299456,0.13573123,110470.0,110460.0,0.01578]
[1761902300406,0.13773123,110470.0,110460.0,0.01578]
[1761902303454,0.13773123,110470.0,110450.0,0.12165901]
[1761902303659,0.13474271,110460.0,110450.0,0.08981901]
[1761902305768,0.14274271,110460.0,110450.0,0.08981901]
[1761902305903,0.13474271,110460.0,110450.0,0.10559901]
[1761902306108,0.12674271,110460.0,110450.0,0.13017901]
[1761902306301,0.12873123,110470.0,110450.0,0.25693241]
[1761902306543,0.002,110470.0,110460.0,0.01578]
[1761902306744,0.12673123,110470.0,110460.0,0.01578]
[1761902307077,0.008,110470.0,110460.0,0.01578]
[1761902307194,0.13473123,110470.0,110460.0,0.01578]
[1761902307703,0.13573123,110470.0,110460.0,0.01578]
[1761902307861,0.13773123,110470.0,110460.0,0.01578]
[1761902308623,0.011,110470.0,110460.0,0.01578]
[1761902308837,0.003,110470.0,110460.0,0.70025497]
[1761902309013,0.003,110470.0,110460.0,3.70025497]
[1761902309472,0.001,110470.0,110460.0,3.70025497]
[1761902309899,0.001,110470.0,110460.0,3.70225497]
[1761902310112,0.001,110470.0,110460.0,4.08843724]
[1761902310312,6.55294129,110500.0,110490.0,3.12670829]
[1761902313676,5.40812303,110500.0,110490.0,3.66542956]
[1761902313875,5.40812303,110500.0,110490.0,4.12120277]
[1761902314076,5.40812303,110500.0,110490.0,4.10176283]
[1761902314728,5.40812303,110500.0,110490.0,4.11176282]
[1761902315088,5.40812303,110500.0,110490.0,4.10176283]
[1761902315287,5.40812303,110500.0,110490.0,4.11176282]
[1761902315749,5.40812303,110500.0,110490.0,4.10176283]
[1761902317041,5.40812303,110500.0,110490.0,4.11176282]
[1761902318674,5.40812303,110500.0,110490.0,4.10176283]
[1761902319419,5.40812303,110500.0,110490.0,4.06558055]
[1761902319618,5.40812303,110500.0,110490.0,3.6222473]
[1761902319834,5.40812303,110500.0,110490.0,4.06558055]
[1761902320171,5.40812303,110500.0,110490.0,4.05158055]
[1761902320577,5.40812303,110500.0,110490.0,4.05458055]
[1761902321586,5.40812303,110500.0,110490.0,4.09776283]
[1761902323769,5.40812303,110500.0,110490.0,4.09876283]
[1761902324090,5.40812303,110500.0,110490.0,4.10776282]
[1761902324479,5.40812303,110500.0,110490.0,4.05926282]
[1761902324766,5.40812303,110500.0,110490.0,4.05826282]
[1761902324904,5.40812303,110500.0,110490.0,4.06926281]
[1761902325105,4.99801472,110500.0,110490.0,4.06926281]
[1761902325306,4.79124927,110500.0,110490.0,4.06926281]
[1761902325569,4.5857235,110500.0,110490.0,4.06926281]
[1761902326429,4.5857235,110500.0,110490.0,4.16484281]
[1761902326430,4.1203257,110500.0,110490.0,4.16484281]
[1761902326631,3.95783383,110500.0,110490.0,4.16484281]
[1761902326834,3.95783383,110500.0,110490.0,4.06926281]
[1761902326835,3.72789494,110500.0,110490.0,4.06926281]
[1761902327036,3.68706774,110500.0,110490.0,4.06926281]
[1761902327193,2.84847654,110500.0,110490.0,4.06926281]
[1761902327402,2.65801866,110500.0,110490.0,4.06926281]
[1761902327737,1.88595515,110500.0,110490.0,3.99186281]
[1761902327942,0.00478103,110500.0,110490.0,2.41186281]
[1761902328145,0.001,110520.0,110510.0,1.83028534]
[1761902328347,0.00148035,110520.0,110510.0,2.4148876]
[1761902328785,0.00148035,110520.0,110510.0,2.4138876]
[1761902328963,0.00148035,110520.0,110510.0,2.40388761]
[1761902329158,0.00148035,110520.0,110510.0,2.4138876]
[1761902329949,0.00148035,110520.0,110510.0,1.96055436]
[1761902330151,0.00148035,110520.0,110510.0,2.4138876]
[1761902330309,0.00148035,110520.0,110510.0,2.40588761]
[1761902330517,0.00148035,110520.0,110510.0,2.4158876]
[1761902330754,0.00148035,110520.0,110510.0,2.4168876]
[1761902331131,0.00148035,110520.0,110510.0,2.45306988]
[1761902331332,0.00148035,110520.0,110510.0,2.45606988]
[1761902331548,0.00148035,110520.0,110510.0,2.89940313]
[1761902332619,0.00148035,110520.0,110510.0,2.92800385]
[1761902333377,0.00148035,110520.0,110510.0,2.72117012]
[1761902333776,1e-08,110520.0,110510.0,2.72117012]
[1761902334000,1e-08,110520.0,110510.0,2.72115345]
[1761902334202,0.005099,110550.0,110510.0,2.72115345]
[1761902334203,0.005099,110550.0,110540.0,0.50283326]
[1761902334444,0.25,110560.0,110550.0,1.86642178]
[1761902334727,0.22514407,110560.0,110550.0,2.71752761]
[1761902334940,0.22514407,110560.0,110550.0,2.68894356]
[1761902335143,0.22514407,110560.0,110550.0,2.67794357]
[1761902335510,0.22514407,110560.0,110550.0,2.68794356]
[1761902335711,0.22514407,110560.0,110550.0,2.67794357]
[1761902335917,0.22514407,110560.0,110550.0,1.9981108]
[1761902336126,0.22514407,110560.0,110550.0,1.98811081]
[1761902336480,0.22514407,110560.0,110550.0,1.48628901]
[1761902336676,0.35177214,110560.0,110550.0,1.48628901]
[1761902337125,0.22514407,110560.0,110550.0,1.48628901]
[1761902337335,0.35177214,110560.0,110550.0,1.46397901]
[1761902337699,0.35177214,110560.0,110550.0,1.48628901]
[1761902338220,0.22514407,110560.0,110550.0,1.48628901]
[1761902339080,0.22514407,110560.0,110550.0,1.48528901]
[1761902339364,0.35177214,110560.0,110550.0,1.48528901]
[1761902339938,0.35277214,110560.0,110550.0,1.48528901]
[1761902340344,0.35377214,110560.0,110550.0,1.48528901]
[1761902341302,1.07347491,110560.0,110550.0,0.08981901]
[1761902341508,0.12665098,110540.0,110530.0,0.01206]
[1761902341640,0.12665098,110540.0,110530.0,1.46097901]
[1761902341844,0.13764893,110550.0,110540.0,1.3426]
[1761902342048,0.15303893,110550.0,110540.0,0.08981901]
[1761902342255,0.17751893,110550.0,110540.0,0.08981901]
[1761902342494,0.8573517,110550.0,110540.0,0.08981901]
[1761902343473,0.8573517,110550.0,110540.0,0.10631901]
[1761902343474,0.02639,110550.0,110540.0,0.10631901]
[1761902343681,0.35177214,110560.0,110550.0,1.3426]
[1761902343888,0.22514407,110560.0,110550.0,0.13857901]
[1761902344083,0.22514407,110560.0,110550.0,0.11426901]
[1761902344084,0.35177214,110560.0,110550.0,0.11426901]
[1761902344284,0.22514407,110560.0,110550.0,0.13857901]
[1761902344529,0.22514407,110560.0,110550.0,1.48117901]
[1761902344947,0.2260229,110560.0,110550.0,1.48117901]
[1761902345168,0.2290229,110560.0,110550.0,1.48117901]
[1761902345340,0.2310229,110560.0,110550.0,1.48117901]
[1761902346226,0.35765097,110560.0,110550.0,1.48117901]
[1761902346421,0.2464129,110560.0,110550.0,0.09776901]
[1761902346905,0.2464129,110560.0,110550.0,0.11426901]
[1761902347730,0.2310229,110560.0,110550.0,0.11426901]
[1761902347934,0.2310229,110560.0,110550.0,0.24090853]
[1761902348464,0.2464129,110560.0,110550.0,0.11426901]
[1761902349067,0.2310229,110560.0,110550.0,0.11426901]
[1761902349525,0.2310229,110560.0,110550.0,0.24090853]
[1761902350194,0.91085567,110560.0,110550.0,0.24090853]
[1761902350391,0.91085567,110560.0,110550.0,0.26521853]
[1761902350816,0.91085567,110560.0,110550.0,0.13857901]
[1761902351027,1.05287374,110560.0,110550.0,0.08981901]
[1761902351242,0.13569049,110550.0,110520.0,0.11702666]
[1761902351473,0.01539,110540.0,110530.0,0.08981901]
[1761902351671,0.01539,110540.0,110530.0,0.10187901]
[1761902351793,0.01539,110540.0,110530.0,0.11837901]
[1761902351993,0.17241049,110550.0,110530.0,0.11837901]
[1761902352201,0.18087043,110550.0,110530.0,0.11837901]
[1761902352402,0.18187043,110550.0,110530.0,0.11837901]
[1761902352639,0.67983277,110540.0,110530.0,0.11837901]
[1761902353030,0.80648375,110540.0,110530.0,0.11837901]
[1761902353364,0.67983277,110540.0,110530.0,1.48528901]
[1761902353714,0.69522277,110540.0,110530.0,0.11837901]
[1761902353918,0.85692375,110540.0,110530.0,0.08981901]
[1761902354320,0.85692375,110540.0,110530.0,0.09081901]
[1761902354831,0.85692375,110540.0,110530.0,0.001]
[1761902355054,0.18555416,110540.0,110530.0,0.001]
[1761902355256,0.85792375,110540.0,110530.0,0.001]
[1761902355456,0.85792375,110540.0,110520.0,0.01206]
[1761902355634,0.72321277,110530.0,110520.0,0.10187901]
[1761902356057,0.72321277,110530.0,110520.0,0.12605901]
[1761902356821,0.72343254,110530.0,110520.0,0.12605901]
[1761902356981,0.88514498,110530.0,110520.0,0.08981901]
[1761902357416,0.1266739,110520.0,110510.0,0.01064]
[1761902357576,0.83040667,110520.0,110510.0,0.10045901]
[1761902358036,0.83040667,110520.0,110510.0,0.12523901]
[1761902358240,0.67983277,110520.0,110510.0,1.50440901]
[1761902358438,0.02005977,110530.0,110520.0,1.3426]
[1761902358641,0.86113498,110530.0,110520.0,1.3426]
[1761902358852,0.88503498,110530.0,110520.0,1.3426]
[1761902359657,0.88603498,110530.0,110520.0,1.3426]
[1761902360190,0.00121977,110530.0,110520.0,0.15116901]
[1761902360564,0.00421977,110530.0,110520.0,0.27784291]
[1761902360768,0.00421977,110530.0,110520.0,1.62044291]
[1761902361331,0.00321977,110530.0,110520.0,1.62044291]
[1761902361561,0.00521977,110530.0,110520.0,1.62044291]
[1761902361749,0.00021977,110530.0,110520.0,1.62044291]
[1761902362115,0.00221977,110530.0,110520.0,1.62044291]
[1761902362726,0.00221977,110530.0,110520.0,1.65662519]
[1761902364228,0.00221977,110530.0,110520.0,2.33645796]
[1761902364810,0.00221977,110530.0,110520.0,2.33745796]
[1761902365192,0.00221977,110530.0,110520.0,2.67645796]
[1761902365401,0.00221977,110530.0,110520.0,2.76811461]
[1761902365830,0.00221977,110530.0,110520.0,2.7781146]
[1761902366030,0.00221977,110530.0,110520.0,2.7771146]
[1761902366239,0.225,110560.0,110550.0,0.12663952]
[1761902366446,0.22514407,110560.0,110550.0,1.59327853]
[1761902366674,0.22514407,110560.0,110550.0,1.62984853]
[1761902368161,0.22714407,110560.0,110550.0,1.62984853]
[1761902368565,0.23014407,110560.0,110550.0,1.62984853]
[1761902368765,0.04683266,110560.0,110550.0,1.62984853]
[1761902368980,0.75056543,110560.0,110550.0,0.12403901]
[1761902369211,0.72666543,110560.0,110550.0,0.16060901]
[1761902369423,0.04683266,110560.0,110550.0,0.16060901]
[1761902369834,0.07073266,110560.0,110550.0,0.12403901]
[1761902370504,0.04683266,110560.0,110550.0,0.25067853]
[1761902370718,0.04683266,110560.0,110550.0,0.28724853]
[1761902370928,0.04683266,110560.0,110550.0,1.62984853]
[1761902372538,0.04683266,110560.0,110550.0,1.50320901]
[1761902372735,0.78614543,110560.0,110550.0,0.08981901]
[1761902373920,0.9127735,110560.0,110550.0,0.08981901]
[1761902375295,0.12664248,110550.0,110530.0,0.01716]
[1761902375498,0.71355277,110540.0,110530.0,0.10697901]
[1761902376087,0.71355277,110540.0,110530.0,0.13175901]
[1761902376661,0.71355277,110540.0,110530.0,0.10697901]
[1761902376870,0.71355277,110540.0,110530.0,0.13175901]
[1761902377952,0.87578375,110540.0,110530.0,0.08981901]
[1761902378538,0.87578375,110540.0,110530.0,0.09081901]
[1761902379364,0.87578375,110540.0,110530.0,0.08981901]
[1761902379693,0.87678375,110540.0,110530.0,0.08981901]
[1761902380007,0.82494059,110540.0,110530.0,0.08981901]
[1761902380207,0.82394059,110540.0,110530.0,0.08981901]
[1761902380842,0.69647277,110540.0,110530.0,0.13175901]
[1761902380993,0.69547277,110540.0,110530.0,0.13175901]
[1761902381399,0.80748375,110540.0,110530.0,0.13175901]
[1761902381632,0.68383277,110540.0,110530.0,0.13175901]
[1761902381837,0.69806277,110540.0,110530.0,0.13175901]
[1761902382038,0.82471375,110540.0,110530.0,0.13175901]
[1761902382278,0.82493349,110540.0,110530.0,0.08981901]
[1761902383116,0.83916349,110540.0,110530.0,0.08981901]
[1761902383286,0.83916349,110540.0,110510.0,0.04721]
[1761902383287,0.12666982,110530.0,110510.0,0.04721]
[1761902383498,0.80650259,110530.0,110520.0,0.08981901]
[1761902383692,0.69406277,110530.0,110520.0,0.11459901]
[1761902383896,0.81974998,110540.0,110520.0,0.11459901]
[1761902384300,0.81874998,110540.0,110520.0,0.11459901]
[1761902384522,0.001,110530.0,110520.0,0.11459901]
[1761902384680,0.81574998,110540.0,110520.0,0.11459901]
[1761902384882,0.001,110530.0,110520.0,0.11459901]
[1761902385104,0.14189244,110530.0,110520.0,0.11459901]
[1761902385303,0.14089244,110530.0,110520.0,0.11459901]
[1761902385741,0.14189244,110530.0,110520.0,0.08981901]
[1761902386064,0.14189244,110530.0,110520.0,0.11225901]
[1761902386348,0.14289244,110530.0,110520.0,0.11225901]
[1761902386551,0.82272521,110530.0,110520.0,0.11225901]
[1761902387327,0.82272521,110530.0,110520.0,0.08981901]
[1761902387864,0.82272521,110530.0,110520.0,0.11225901]
[1761902390601,0.68183277,110530.0,110520.0,0.14897901]
[1761902390953,0.80849521,110530.0,110520.0,0.14897901]
[1761902391610,0.82272521,110530.0,110520.0,0.11225901]
[1761902391763,0.12866244,110530.0,110520.0,0.11225901]
[1761902391966,0.12866244,110530.0,110520.0,0.14897901]
[1761902392386,0.14289244,110530.0,110520.0,0.11225901]
[1761902392586,0.82272521,110530.0,110520.0,0.08981901]
[1761902393021,0.83695521,110530.0,110520.0,0.08981901]
[1761902393595,0.82272521,110530.0,110520.0,0.08981901]
[1761902393806,0.1266739,110520.0,110510.0,0.01064]
[1761902393964,0.82073667,110520.0,110510.0,0.08981901]
[1761902394186,0.12668536,110510.0,110500.0,0.01786]
[1761902394495,0.82515813,110510.0,110500.0,0.10767901]
[1761902394696,0.82515813,110510.0,110500.0,0.13011901]
[1761902394897,0.82515813,110510.0,110500.0,0.13059936]
[1761902395300,0.58837176,110510.0,110500.0,0.13059936]
[1761902395515,0.58837176,110510.0,110500.0,0.10815936]